bitfinex-derivatives/quotes_ETHF0:USTF0_20240927
["timestamp","ask_amount","ask_price","bid_price","bid_amount"]
[1727452507108,1.82661781,2687.5,2687.3,0.37198]
[1727452507408,1.45661781,2687.4,2687.2,0.37199]
[1727452507616,0.372,2687.3,2687.2,0.37199]
[1727452508207,1.82859781,2687.4,2687.3,0.37199]
[1727452508522,0.37199,2687.3,2687.2,0.37199]
[1727452509007,0.37201,2687.2,2687.1,0.372]
[1727452509417,1.82953097,2687.2,2687.1,0.372]
[1727452510111,0.37201,2687.2,2687.1,0.372]
[1727452510411,1.82953328,2687.2,2687.1,0.372]
[1727452510911,0.37201,2687.2,2687.1,0.372]
[1727452511614,1.83002846,2687.2,2687.1,0.372]
[1727452512504,1.45801846,2687.2,2687.1,0.372]
[1727452512905,1.45801846,2687.2,2687.1,3.272]
[1727452513106,5.14995708,2687.4,2687.1,6.6216]
[1727452513107,1.45801846,2687.4,2687.1,6.6216]
[1727452513312,1.82801846,2687.5,2687.4,0.37197]
[1727452513710,0.37,2687.5,2687.2,0.37199]
[1727452513905,0.372,2687.3,2687.2,0.37199]
[1727452514108,0.37201,2687.2,2687.1,0.372]
[1727452514307,0.37202,2687.1,2687.0,0.37202]
[1727452514507,0.76142,2687.1,2687.0,0.37202]
[1727452515009,0.76141,2687.1,2687.0,0.37202]
[1727452515308,2.22010044,2687.1,2687.0,0.37202]
[1727452515705,1.84809044,2687.1,2687.0,0.37202]
[1727452516107,1.3021,2687.0,2686.9,0.0274]
[1727452516307,0.93014,2686.9,2686.5,0.37209]
[1727452516512,0.93014,2686.9,2686.4,0.3721]
[1727452516513,0.3721,2686.5,2686.4,0.3721]
[1727452516707,1.45878796,2686.5,2686.1,0.7634]
[1727452517105,0.37213,2686.3,2686.2,0.37213]
[1727452517308,0.37212,2686.4,2686.3,0.37212]
[1727452517615,1.45878796,2686.5,2686.3,0.37212]
[1727452517616,1.83089796,2686.5,2686.3,0.37212]
[1727452517812,1.83089796,2686.4,2686.3,0.37212]
[1727452518319,0.37211,2686.4,2686.2,0.37213]
[1727452518519,0.37211,2686.4,2686.3,0.37212]
[1727452518719,1.45878796,2686.5,2686.3,0.37212]
[1727452519009,1.83089796,2686.5,2686.4,0.37211]
[1727452519216,1.45850958,2686.5,2686.4,0.3721]
[1727452519609,2.22141477,2686.6,2686.5,0.3721]
[1727452519809,1.84932477,2686.6,2686.5,0.3721]
[1727452520609,1.45802477,2686.6,2686.5,0.3721]
[1727452520918,1.45779771,2686.7,2686.6,0.37208]
[1727452521819,2.96338873,2686.7,2686.6,0.37208]
[1727452522021,1.45779771,2686.7,2686.6,0.37208]
[1727452522212,2.96347077,2686.7,2686.6,0.37208]
[1727452522415,0.92720366,2686.7,2686.6,0.37208]
[1727452522609,2.38500137,2686.7,2686.6,0.37208]
[1727452522810,2.96347077,2686.7,2686.6,0.37208]
[1727452523008,0.92720366,2686.7,2686.6,0.37208]
[1727452523207,3.33554077,2686.7,2686.2,3.83034]
[1727452523411,0.92720366,2686.6,2686.2,3.83034]
[1727452523617,0.92720366,2686.6,2686.2,2.9]
[1727452523919,1.29929366,2686.6,2686.4,0.3721]
[1727452524116,0.92734894,2686.5,2686.2,2.9]
[1727452524306,0.92734894,2686.4,2686.3,1.30244]
[1727452524507,0.35667267,2686.4,2686.3,3.27212]
[1727452524709,1.29936913,2686.7,2686.6,0.37208]
[1727452524916,1.29936146,2686.7,2686.6,0.37208]
[1727452525114,2.75715917,2686.7,2686.6,0.37208]
[1727452525318,1.29936146,2686.7,2686.6,0.37208]
[1727452525919,0.3721,2686.5,2686.4,0.3721]
[1727452526424,1.29939146,2686.5,2686.4,0.3721]
[1727452526621,0.92729146,2686.5,2686.1,0.7634]
[1727452526815,4.13808,2686.4,2686.0,0.37215]
[1727452527117,0.37215,2686.2,2686.1,0.37215]
[1727452527323,1.29944146,2686.2,2686.1,0.37215]
[1727452527913,1.29943146,2686.2,2686.1,0.37215]
[1727452529025,0.37217,2686.0,2685.9,0.37217]
[1727452529332,0.37219,2685.9,2685.8,0.37219]
[1727452529523,1.2992903,2685.9,2685.8,0.37219]
[1727452529819,1.7025903,2685.9,2685.8,0.37219]
[1727452530017,1.3304003,2685.9,2685.8,0.37219]
[1727452530414,0.9271003,2685.9,2685.8,5.13317]
[1727452530611,3.2078,2686.4,2686.3,0.37212]
[1727452530817,3.77784772,2686.4,2686.3,0.37212]
[1727452531513,0.57004772,2686.4,2686.3,0.37212]
[1727452532137,4.078,2686.6,2686.5,0.3721]
[1727452532425,3.5886,2686.7,2686.6,0.37208]
[1727452532727,4.15236163,2686.7,2686.6,0.37208]
[1727452533028,4.52443163,2686.7,2686.6,0.37208]
[1727452535020,4.15236163,2686.7,2686.2,0.7962]
[1727452535221,0.37212,2686.4,2686.3,0.37211]
[1727452535526,0.93588163,2686.4,2686.3,0.37211]
[1727452535722,0.37212,2686.4,2686.3,0.37211]
[1727452535921,0.56358734,2686.4,2686.3,0.37211]
[1727452536327,0.56358734,2686.4,2686.2,0.37213]
[1727452536328,0.37214,2686.3,2686.2,0.37213]
[1727452536629,1.31692734,2686.3,2686.2,0.37213]
[1727452537126,0.94478734,2686.3,2686.2,0.37213]
[1727452537631,0.56358734,2686.3,2686.2,1.30248]
[1727452537820,0.76581,2686.5,2686.2,0.93035]
[1727452538022,0.3937,2686.5,2686.4,0.37211]
[1727452538223,0.9573441,2686.5,2686.4,0.37211]
[1727452539225,0.9357441,2686.5,2686.4,0.37211]
[1727452539423,0.3721,2686.5,2686.4,0.37211]
[1727452539624,0.75329,2686.6,2686.5,0.3721]
[1727452539814,1.3169729,2686.6,2686.5,0.3721]
[1727452541131,0.3721,2686.5,2686.4,0.3721]
[1727452541330,0.9357829,2686.5,2686.4,0.3721]
[1727452541831,0.37211,2686.4,2686.3,0.39952]
[1727452542019,0.9357929,2686.4,2686.3,0.39952]
[1727452542422,0.5636829,2686.4,2686.3,0.39952]
[1727452542730,0.91607844,2686.4,2686.3,0.39952]
[1727452543030,1.28818844,2686.4,2686.3,0.39952]
[1727452543930,1.28842913,2686.4,2686.3,0.39952]
[1727452545725,0.91631913,2686.4,2686.3,0.39952]
[1727452546427,1.28842913,2686.4,2686.3,0.39952]
[1727452546632,14.43698684,2686.4,2686.3,0.0274]
[1727452546829,13.55732029,2686.4,2686.3,0.0274]
[1727452547136,14.92402322,2686.4,2686.3,0.0274]
[1727452548222,20.92402322,2686.4,2686.3,0.0274]
[1727452548730,0.3722,2685.8,2685.6,1.14662]
[1727452548927,0.35243043,2685.7,2685.6,1.14662]
[1727452549234,3.2078,2685.9,2685.6,0.37221]
[1727452549235,0.72483564,2685.8,2685.6,0.37221]
[1727452549434,0.35263564,2685.7,2685.6,0.37221]
[1727452549632,0.72484564,2685.7,2685.6,0.37221]
[1727452549824,0.35263564,2685.7,2685.6,0.37222]
[1727452550338,0.35263564,2685.7,2685.6,5.02598]
[1727452550839,0.35263564,2685.7,2685.6,7.92598]
[1727452551032,0.35263564,2685.7,2685.6,6.99542]
[1727452551337,0.37218,2685.9,2685.8,0.37219]
[1727452551532,0.91675275,2685.9,2685.8,0.37219]
[1727452552734,0.91675275,2685.9,2685.8,1.30268]
[1727452552940,3.2078,2686.0,2685.9,0.37218]
[1727452553141,3.2078,2686.0,2685.9,1.30264]
[1727452553142,4.10517105,2686.0,2685.9,1.30264]
[1727452553340,4.10517105,2686.0,2685.9,0.37218]
[1727452553553,4.10517105,2686.0,2685.9,2.2331]
[1727452553554,0.89737105,2686.0,2685.9,2.2331]
[1727452553739,0.89737105,2686.0,2685.9,11.9563]
[1727452553934,0.35265404,2686.0,2685.9,12.3278]
[1727452554134,3.2078,2686.3,2686.2,2.23284]
[1727452554329,3.74651387,2686.3,2686.2,5.13284]
[1727452554537,3.2078,2686.3,2686.2,1.30249]
[1727452554734,3.74658002,2686.3,2686.2,1.30249]
[1727452555143,3.74658002,2686.3,2686.2,0.37214]
[1727452555345,3.74658002,2686.3,2686.2,5.95524]
[1727452556143,3.74658002,2686.3,2686.2,11.95524]
[1727452556533,3.74652725,2686.3,2686.2,11.95524]
[1727452557241,3.74652725,2686.3,2686.2,12.34934]
[1727452558739,0.53872725,2686.3,2686.2,12.34934]
[1727452558939,0.53872725,2686.3,2686.2,18.40362398]
[1727452559136,3.2078,2686.6,2686.5,1.30235]
[1727452559339,3.74660253,2686.6,2686.5,2.2326]
[1727452559541,0.53880253,2686.6,2686.5,12.3451]
[1727452559943,1.45778171,2687.0,2686.8,0.93014]
[1727452560149,1.45778171,2687.0,2686.9,1.67245]
[1727452560451,1.99845998,2687.0,2686.9,1.67245]
[1727452560642,2.31572895,2687.1,2687.0,0.37203]
[1727452560948,2.85475435,2687.1,2687.0,0.37203]
[1727452561144,2.48273435,2687.1,2687.0,0.37203]
[1727452561340,2.48273435,2687.1,2687.0,1.3021]
[1727452561537,2.48273435,2687.1,2687.0,0.37203]
[1727452561733,2.85474435,2687.1,2687.0,0.37203]
[1727452562045,2.85474435,2687.1,2686.8,1.33064]
[1727452562046,0.37205,2686.9,2686.8,0.37205]
[1727452562649,0.91106956,2686.9,2686.8,0.37205]
[1727452562841,0.37211,2686.4,2686.3,1.34082234]
[1727452563042,0.37211,2686.4,2686.1,1.92721896]
[1727452563043,0.37215,2686.2,2686.1,0.37215]
[1727452563437,0.91116956,2686.2,2686.1,0.37215]
[1727452563638,2.36985437,2686.2,2686.1,0.37215]
[1727452564852,0.53901956,2686.2,2686.1,0.37215]
[1727452565056,2.36984437,2686.2,2686.1,0.37215]
[1727452565450,0.91115956,2686.2,2686.1,0.37215]
[1727452565957,2.63031481,2686.3,2686.2,0.37214]
[1727452566256,2.04705846,2686.3,2686.2,0.37214]
[1727452566451,3.50560032,2686.3,2686.2,0.37214]
[1727452566752,3.50560032,2686.3,2685.9,0.3796]
[1727452566753,0.37215,2686.2,2686.1,0.37215]
[1727452566951,2.33397032,2686.2,2685.7,0.96871234]
[1727452567147,4.59862846,2686.1,2685.5,1.89929234]
[1727452567343,4.59862846,2686.1,2685.9,0.37217]
[1727452567344,2.70571285,2686.0,2685.9,0.37217]
[1727452567543,1.24760846,2686.0,2685.9,0.37217]
[1727452568156,0.37219,2685.8,2685.7,0.37219]
[1727452568353,1.24723126,2685.8,2685.7,0.37219]
[1727452568747,1.63733126,2685.8,2685.7,0.37219]
[1727452569049,1.26514126,2685.8,2685.4,1.35961234]
[1727452569254,0.37222,2685.6,2685.5,0.37222]
[1727452569445,0.37222,2685.6,2685.5,0.37223]
[1727452569446,0.91066638,2685.6,2685.5,0.37223]
[1727452569646,0.91060845,2685.6,2685.5,0.37223]
[1727452569847,0.91060845,2685.6,2685.2,0.4048]
[1727452569848,0.37224,2685.5,2685.4,0.37224]
[1727452570047,0.87488123,2685.5,2685.4,0.37224]
[1727452571452,1.24711123,2685.5,2685.4,0.37224]
[1727452571754,2.70499385,2685.5,2685.4,0.37224]
[1727452572052,2.33276385,2685.5,2685.4,0.37224]
[1727452572446,0.87488123,2685.5,2685.4,0.37224]
[1727452572649,0.87488123,2685.5,2685.2,0.93069]
[1727452572650,1.84188262,2685.6,2685.5,0.37223]
[1727452572847,1.45788262,2685.6,2685.5,0.37223]
[1727452573156,2.33209335,2685.6,2685.5,0.37223]
[1727452574253,2.33010515,2685.6,2685.5,0.37223]
[1727452574448,1.79212834,2685.6,2685.5,0.37223]
[1727452575058,1.79212834,2685.6,2685.5,6.99623]
[1727452575251,0.33623392,2685.6,2685.5,14.85741]
[1727452575457,1.45589442,2686.0,2685.9,1.30264]
[1727452575654,1.45589442,2686.1,2686.0,0.37217]
[1727452575858,4.66369442,2686.2,2686.1,0.37215]
[1727452576259,5.03583442,2686.2,2686.1,0.37215]
[1727452576447,4.66369442,2686.2,2686.1,0.37215]
[1727452577363,3.57994,2686.2,2686.1,0.37215]
[1727452577560,3.57994,2686.2,2685.7,3.2078]
[1727452577561,4.66369442,2686.2,2685.7,3.2078]
[1727452577757,0.37217,2686.0,2685.9,0.37218]
[1727452578056,0.37217,2686.0,2685.9,0.37217]
[1727452578562,0.37216,2686.1,2686.0,0.37216]
[1727452579059,4.66369442,2686.2,2686.1,0.37215]
[1727452579471,5.03583442,2686.2,2686.1,0.37215]
[1727452579760,5.03583442,2686.2,2686.0,0.37216]
[1727452579962,4.66369442,2686.2,2685.4,1.74411234]
[1727452580162,5.28628442,2686.1,2685.4,0.7754]
[1727452580360,0.3722,2685.8,2685.3,0.96871234]
[1727452580663,0.7445,2685.7,2685.3,0.93066]
[1727452580861,0.7445,2685.7,2685.6,0.37222]
[1727452584460,4.66369442,2685.9,2685.8,0.37219]
[1727452584656,4.66369442,2685.9,2685.8,4.09539]
[1727452584859,3.2078,2685.9,2685.8,4.09539]
[1727452585054,1.85739442,2686.0,2685.7,3.83051]
[1727452585055,1.85739442,2686.0,2685.9,0.37218]
[1727452585260,0.4015,2686.0,2685.9,0.37218]
[1727452586073,1.85789442,2686.1,2686.0,0.37217]
[1727452586274,1.45589442,2686.1,2686.0,0.37217]
[1727452586564,1.45589442,2686.1,2686.0,4.09537]
[1727452586764,1.45589442,2686.2,2686.1,0.37215]
[1727452586958,6.32947125,2686.3,2686.2,0.37214]
[1727452587569,0.37215,2686.2,2686.1,0.37215]
[1727452587863,2.15329657,2686.2,2686.1,0.37215]
[1727452588170,0.69500723,2686.2,2686.1,0.37215]
[1727452588368,0.37216,2686.1,2686.0,0.37216]
[1727452588668,2.15328985,2686.1,2686.0,0.37216]
[1727452589865,0.3722,2685.9,2685.8,0.37219]
[1727452590170,0.3722,2685.9,2685.6,0.37221]
[1727452590171,0.37222,2685.7,2685.6,0.37221]
[1727452590358,2.21787262,2685.8,2685.7,0.37221]
[1727452590664,2.54067891,2685.8,2685.7,0.37221]
[1727452590867,0.37222,2685.7,2685.6,0.37221]
[1727452591058,0.69502629,2685.7,2685.6,0.37221]
[1727452591264,2.15329891,2685.7,2685.6,0.37221]
[1727452591472,0.69502629,2685.7,2685.6,0.37221]
[1727452592359,0.37225,2685.5,2685.2,2.9]
[1727452592567,0.69505629,2685.4,2685.3,0.37226]
[1727452594771,0.32280629,2685.4,2685.3,0.37226]
[1727452595670,0.69505629,2685.4,2685.3,0.37226]
[1727452596071,0.32280629,2685.4,2685.3,0.37226]
[1727452596863,0.69505629,2685.4,2685.3,0.37226]
[1727452597169,3.90272632,2685.4,2685.3,0.37226]
[1727452598565,3.53047632,2685.4,2685.3,0.37226]
[1727452600362,4.28682632,2685.4,2685.3,0.37226]
[1727452600770,0.37228,2685.3,2685.2,0.37227]
[1727452600972,0.37229,2685.2,2685.1,0.37228]
[1727452601273,0.37229,2685.2,2685.0,0.37229]
[1727452601274,0.3723,2685.1,2685.0,0.37229]
[1727452601576,0.69476493,2685.1,2685.0,0.37229]
[1727452602173,0.37231,2685.0,2684.9,0.37231]
[1727452602365,0.32246493,2685.0,2684.9,0.37231]
[1727452602678,0.69476493,2685.0,2684.9,0.37231]
[1727452603579,0.32246493,2685.0,2684.9,0.37231]
[1727452603875,0.3723,2685.1,2685.0,0.3723]
[1727452604265,0.69489346,2685.1,2685.0,0.3723]
[1727452604471,0.32259346,2685.1,2685.0,0.3723]
[1727452604671,0.32259346,2685.1,2685.0,4.20307]
[1727452605073,0.32259346,2685.1,2685.0,0.3723]
[1727452605271,0.37231,2685.0,2684.9,0.37232]
[1727452605476,0.69490346,2685.0,2684.9,0.37232]
[1727452606073,0.32259346,2685.0,2684.9,0.37232]
[1727452606381,1.82837262,2685.3,2684.8,3.84083]
[1727452606382,0.69491564,2685.2,2685.1,0.37229]
[1727452606684,0.69491564,2685.2,2685.1,1.30302]
[1727452606685,0.32263564,2685.2,2685.1,1.30302]
[1727452607380,0.3701,2685.3,2685.2,0.37228]
[1727452607575,0.69284586,2685.3,2685.2,0.37228]
[1727452607776,4.41684586,2685.3,2685.2,0.37228]
[1727452607971,4.78910586,2685.3,2685.2,0.37228]
[1727452608386,4.78910586,2685.3,2684.8,0.01]
[1727452608387,6.80579848,2685.3,2684.8,0.01]
[1727452608587,0.37231,2685.0,2684.9,0.37231]
[1727452608780,0.32274586,2685.0,2684.9,0.37231]
[1727452608980,3.7248,2685.0,2684.9,0.37231]
[1727452609185,4.41984586,2685.0,2684.9,0.37231]
[1727452609490,4.04754586,2685.0,2684.9,0.37231]
[1727452609681,1.30312,2684.9,2684.8,0.01]
[1727452609874,5.87804339,2684.9,2684.8,0.38233]
[1727452610076,0.32274586,2684.9,2684.8,0.38233]
[1727452610275,4.41986586,2684.9,2684.8,0.38233]
[1727452610683,4.41984721,2684.9,2684.8,0.01]
[1727452611077,4.41984721,2684.9,2684.4,0.93094]
[1727452611078,10.97834721,2684.9,2684.3,2.9]
[1727452611387,0.37235,2684.7,2684.6,0.37236]
[1727452611582,0.69507721,2684.7,2684.6,0.37236]
[1727452611785,10.97840721,2684.7,2684.0,5.12026567]
[1727452612081,2.9,2684.4,2683.8,4.17651234]
[1727452612387,0.37246,2683.9,2683.8,3.2078]
[1727452612579,6.94832721,2683.9,2683.2,0.96871234]
[1727452612881,0.37251,2683.6,2683.3,0.37253]
[1727452613091,0.72902721,2683.5,2682.9,3.2078]
[1727452613281,0.72902721,2683.5,2683.0,2.9]
[1727452613282,0.32272721,2683.4,2683.0,2.9]
[1727452613493,3.2078,2683.6,2683.5,1.3038]
[1727452613683,2.51704262,2684.2,2684.1,0.37243]
[1727452613684,3.2078,2684.2,2684.1,0.37243]
[1727452613997,0.4923,2684.4,2683.6,3.6743]
[1727452613998,0.4063,2684.4,2683.6,3.6743]
[1727452614282,2.9,2684.1,2683.6,0.37249]
[1727452614488,0.4097,2684.0,2683.8,0.37246]
[1727452614789,0.32199906,2683.9,2683.8,0.37246]
[1727452614991,4.04759906,2683.9,2683.2,0.93139]
[1727452615190,0.3972,2683.8,2683.7,0.37248]
[1727452615491,0.3972,2683.8,2683.5,0.3725]
[1727452615492,0.37249,2683.7,2683.5,0.3725]
[1727452615787,0.74149,2683.7,2683.5,0.3725]
[1727452615991,4.09891,2683.6,2683.4,0.37252]
[1727452616288,0.369,2683.7,2683.0,0.3748]
[1727452616482,0.37254,2683.4,2683.2,0.37255]
[1727452616688,0.37255,2683.2,2683.1,0.37256]
[1727452616890,0.76974,2683.3,2683.1,0.37256]
[1727452617187,0.37255,2683.2,2683.1,0.37256]
[1727452617388,0.3972,2683.3,2683.1,0.37256]
[1727452617591,0.76975,2683.3,2682.9,0.4028]
[1727452617780,0.76975,2683.3,2682.6,3.6171]
[1727452617781,3.58036,2683.2,2683.0,0.37258]
[1727452617987,0.4039,2683.1,2683.0,0.37258]
[1727452618287,0.4039,2683.1,2682.9,0.37259]
[1727452618490,0.4039,2683.1,2682.6,3.5879]
[1727452618990,0.4039,2683.1,2683.0,0.37258]
[1727452619287,1.3352,2683.5,2683.1,0.37257]
[1727452619480,0.37255,2683.3,2683.1,0.37257]
[1727452620188,0.3944,2683.4,2682.7,3.83156]
[1727452620386,0.37254,2683.3,2683.1,0.37256]
[1727452620582,0.37254,2683.3,2683.2,0.37255]
[1727452620785,0.3944,2683.4,2683.3,0.37254]
[1727452620982,0.76693,2683.4,2683.2,0.37254]
[1727452621191,0.76693,2683.4,2682.8,0.93151]
[1727452621387,0.76693,2683.4,2683.3,0.37254]
[1727452621600,0.37254,2683.3,2682.7,3.83156]
[1727452621888,0.76693,2683.4,2683.2,0.37254]
[1727452622094,3.7272,2683.3,2682.4,0.93167]
[1727452622284,0.4016,2683.2,2683.1,0.37257]
[1727452622684,7.0288,2683.2,2683.1,0.37257]
[1727452623286,16.2366,2683.2,2682.6,3.2078]
[1727452623483,6.5094,2683.2,2682.6,3.2078]
[1727452623697,0.37257,2683.1,2682.9,0.37259]
[1727452623892,6.88196,2683.2,2682.9,0.37259]
[1727452624085,4.09977,2683.1,2682.9,0.37259]
[1727452624290,0.37258,2683.0,2682.8,0.3726]
[1727452624485,0.3736,2682.9,2682.8,0.3726]
[1727452624789,4.489,2682.9,2682.6,3.2078]
[1727452625088,2.9,2682.7,2682.6,0.37264]
[1727452625690,6.628,2682.7,2682.6,0.37264]
[1727452626394,6.628,2682.7,2681.7,0.086]
[1727452626395,12.628,2682.7,2681.7,2.986]
[1727452626597,0.37268,2682.4,2682.1,0.3727]
[1727452626788,6.1078,2682.5,2682.0,0.37272]
[1727452626789,0.3727,2682.2,2682.0,0.37272]
[1727452626984,0.3727,2682.2,2681.5,6.5046]
[1727452626985,0.37271,2682.1,2681.9,0.37273]
[1727452627291,3.83184,2682.0,2681.3,0.18856706]
[1727452627492,6.1078,2681.7,2681.3,0.18856706]
[1727452627798,6.1078,2681.7,2681.6,0.37278]
[1727452627998,3.2078,2682.1,2682.0,0.37271]
[1727452628293,3.2078,2682.1,2681.6,3.27278]
[1727452628294,0.7812,2682.3,2682.2,0.37269]
[1727452628496,3.2078,2682.5,2681.7,1.68629]
[1727452628497,3.2078,2682.5,2682.4,0.37266]
[1727452628694,3.6932,2683.1,2683.0,0.37258]
[1727452628992,3.6154,2683.1,2683.0,0.37258]
[1727452629200,0.4076,2683.1,2683.0,0.37258]
[1727452629790,2.9,2683.4,2682.6,0.93158]
[1727452629991,2.9,2683.4,2683.2,0.37254]
[1727452630194,0.77562,2683.5,2683.2,0.37254]
[1727452630504,0.37253,2683.4,2683.1,0.37256]
[1727452630694,0.77562,2683.5,2683.2,0.37255]
[1727452631004,3.2078,2683.6,2683.0,6.1078]
[1727452631202,0.4031,2683.8,2683.6,0.37249]
[1727452631800,3.2078,2683.9,2683.8,0.37247]
[1727452632493,3.2078,2684.3,2684.2,0.3724]
[1727452632890,0.4031,2684.5,2684.4,0.37239]
[1727452633108,3.2078,2684.8,2684.0,0.93111]
[1727452633298,3.2078,2684.8,2684.6,0.37235]
[1727452633497,3.2078,2684.8,2684.7,0.37235]
[1727452633699,3.2078,2684.8,2684.1,0.93108]
[1727452634003,2.9,2684.4,2684.2,0.37241]
[1727452634204,6.99799,2684.4,2683.9,3.2078]
[1727452634403,3.27239,2684.4,2684.2,0.37241]
[1727452634596,3.27239,2684.4,2683.9,3.2078]
[1727452634597,2.9,2684.4,2683.9,3.2078]
[1727452634802,3.2745,2684.4,2684.2,0.37241]
[1727452635189,0.3745,2684.4,2684.3,0.3724]
[1727452635502,3.2078,2684.5,2684.4,0.37239]
[1727452635887,3.2078,2684.5,2683.9,7.03894]
[1727452635888,6.9326,2684.5,2684.3,0.37239]
[1727452636197,6.9326,2684.5,2683.9,7.03894]
[1727452636198,3.58013,2684.8,2684.6,0.37236]
[1727452636401,0.37238,2684.5,2684.2,0.3724]
[1727452636601,0.37238,2684.5,2684.3,0.3724]
[1727452636804,3.7256,2684.4,2684.3,0.3724]
[1727452637203,3.58018,2684.5,2684.4,0.37239]
[1727452637204,3.2078,2684.5,2684.4,0.37239]
[1727452637495,3.2078,2684.8,2684.3,0.37239]
[1727452637696,0.37238,2684.5,2684.3,0.37239]
[1727452638200,0.37237,2684.6,2684.4,0.37238]
[1727452638389,3.2078,2684.8,2684.0,0.93111]
[1727452638591,0.37235,2684.7,2684.5,0.37236]
[1727452638895,0.37239,2684.5,2683.9,6.1078]
[1727452639093,3.2078,2684.5,2683.9,3.2078]
[1727452639310,0.37242,2684.2,2684.0,0.37244]
[1727452639600,0.37239,2684.4,2684.2,0.37241]
[1727452639799,0.3724,2684.3,2684.1,0.37242]
[1727452640004,0.37242,2684.2,2684.0,0.37243]
[1727452640302,0.3724,2684.4,2684.2,0.37241]
[1727452640508,0.37241,2684.3,2684.1,0.37242]
[1727452640799,0.37239,2684.4,2683.9,3.2078]
[1727452641003,0.37239,2684.4,2684.3,0.3724]
[1727452641203,3.2078,2684.5,2684.3,0.3724]
[1727452641204,3.58018,2684.5,2684.3,0.3724]
[1727452641405,7.30578,2684.5,2684.3,0.3724]
[1727452641699,6.9334,2684.5,2684.4,0.37239]
[1727452641901,3.2078,2684.5,2684.4,0.37239]
[1727452642106,3.58018,2684.5,2684.3,0.3724]
[1727452642707,0.37239,2684.4,2684.2,0.37241]
[1727452643007,0.3724,2684.3,2684.2,0.37241]
[1727452643214,6.1078,2684.5,2683.9,3.2078]
[1727452643398,6.1078,2684.5,2684.1,0.37242]
[1727452643608,0.37241,2684.3,2684.1,0.37242]
[1727452643900,6.1078,2684.5,2684.2,0.37242]
[1727452644103,6.1078,2684.5,2683.9,3.2078]
[1727452644305,3.58018,2684.5,2684.3,0.3724]
[1727452644703,3.58018,2684.5,2684.4,0.37239]
[1727452645007,3.2078,2684.5,2684.4,0.37239]
[1727452645307,3.2078,2684.5,2684.3,0.37239]
[1727452645605,3.58018,2684.5,2684.3,0.37239]
[1727452646006,3.2078,2684.5,2684.4,0.37239]
[1727452646894,1.30785,2684.8,2684.7,0.37235]
[1727452646895,3.95714,2684.8,2684.7,0.37235]
[1727452647302,7.68194,2684.8,2684.7,0.37235]
[1727452647502,7.3096,2684.8,2684.5,0.37236]
[1727452647709,0.37236,2684.7,2684.5,0.37236]
[1727452647907,0.37236,2684.7,2684.6,0.37236]
[1727452647908,0.37235,2684.7,2684.6,0.37236]
[1727452648207,3.58014,2684.8,2684.7,0.37235]
[1727452648396,3.2078,2684.8,2684.7,0.37235]
[1727452648603,0.74682,2684.9,2684.7,0.37235]
[1727452648797,0.37235,2684.7,2684.6,0.37235]
[1727452649109,0.37235,2684.7,2684.3,0.37239]
[1727452649110,0.93089,2684.7,2684.3,0.37239]
[1727452649317,2.9,2684.7,2684.2,0.405]
[1727452649495,0.3724,2684.4,2684.3,0.37239]
[1727452649697,0.3724,2684.3,2684.2,0.37241]
[1727452650301,0.3724,2684.4,2684.3,0.37239]
[1727452650997,0.3724,2684.4,2684.3,0.3724]
[1727452652000,0.37238,2684.5,2684.4,0.37239]
[1727452652207,0.3724,2684.4,2684.3,0.3724]
[1727452653203,3.58018,2684.5,2684.4,0.37239]
[1727452653705,0.37238,2684.5,2684.4,0.37239]
[1727452654304,3.58018,2684.5,2684.4,0.37239]
[1727452655004,3.2078,2684.5,2684.4,0.37239]
[1727452655417,3.58014,2684.8,2684.7,0.37235]
[1727452655609,2.79813753,2685.1,2684.7,2.9]
[1727452655610,3.2078,2685.1,2684.7,2.9]
[1727452655809,3.2078,2685.4,2685.3,0.37226]
[1727452656118,0.4043,2685.7,2685.6,0.37222]
[1727452656313,18.01407998,2685.7,2684.7,0.086]
[1727452656504,0.37232,2684.9,2684.8,0.37233]
[1727452657314,0.37232,2684.9,2684.7,0.37234]
[1727452657514,0.37231,2685.0,2684.4,4.13874]
[1727452657716,0.37232,2684.9,2684.4,4.13874]
[1727452658009,3.2078,2685.0,2684.7,0.37234]
[1727452658506,3.2078,2685.0,2684.5,0.93094]
[1727452658712,3.2078,2685.0,2684.9,0.37232]
[1727452659013,0.37232,2684.9,2684.8,0.37233]
[1727452659203,3.58011,2685.0,2684.9,0.37232]
[1727452659403,0.37228,2685.2,2684.6,0.3916]
[1727452659605,0.76823,2685.6,2685.0,0.93077]
[1727452659814,0.37224,2685.5,2685.1,0.3993]
[1727452660001,0.93053,2685.7,2684.8,3.2078]
[1727452660202,0.37231,2685.0,2684.9,0.37231]
[1727452660400,0.37232,2684.9,2684.8,0.37232]
[1727452661012,6.491,2685.2,2684.6,0.3826]
[1727452661217,3.591,2685.2,2685.1,0.37229]
[1727452661511,3.2078,2685.2,2685.1,0.37229]
[1727452662610,0.37225,2685.4,2685.3,0.37226]
[1727452663009,0.37227,2685.3,2685.2,0.37227]
[1727452663613,0.37227,2685.3,2684.6,1.71278]
[1727452663614,0.3723,2685.1,2685.0,0.3723]
[1727452663815,0.93072,2685.2,2685.1,0.37227]
[1727452663816,0.37228,2685.2,2685.1,0.37227]
[1727452664115,0.37227,2685.3,2685.2,0.37227]
[1727452665004,4.13845,2685.4,2685.1,0.37228]
[1727452665005,0.37229,2685.2,2685.1,0.37228]
[1727452665414,0.37227,2685.3,2685.2,0.37227]
[1727452667222,0.3723,2685.1,2685.0,0.3723]
[1727452667407,0.37229,2685.2,2685.1,0.37228]
[1727452667607,0.37227,2685.3,2685.2,0.37227]
[1727452668211,0.37225,2685.4,2685.3,0.37226]
[1727452668419,3.58005,2685.4,2685.3,0.37226]
[1727452668817,0.37225,2685.4,2685.3,0.37226]